[Event "Rapid Tournament (RAP)"]
[Site "Biel, Switzerland"]
[Date "2026.07.12"]
[Round "8.46"]
[White "Liengme, Samuel"]
[Black "Martin, Gerome"]
[Result "1/2-1/2"]
[TimeControl "15 + 5"]
[WhiteTitle "-"]
[BlackTitle "-"]
[WhiteFideId "1368141"]
[BlackFideId "1360817"]
[WhiteElo "1967"]
[BlackElo "1757"]

1. e4 {[%clk 00:15:08]} c5 {[%clk 00:15:07]} {[%emt 00:00:05]} 2. c3 {[%clk
00:15:07]} {[%emt 00:00:04]} d5 {[%clk 00:15:10]} {[%emt 00:00:02]} 3. exd5
{[%clk 00:15:08]} {[%emt 00:00:05]} Qxd5 {[%clk 00:15:12]} {[%emt 00:00:02]} 4.
Nf3 {[%clk 00:15:04]} {[%emt 00:00:09]} Bg4 {[%clk 00:14:46]} {[%emt 00:00:32]}
5. d4 {[%clk 00:14:34]} {[%emt 00:00:35]} Bxf3 {[%clk 00:14:42]} {[%emt
00:00:09]} 6. Qxf3 {[%clk 00:14:36]} {[%emt 00:00:02]} Qxf3 {[%clk 00:14:44]}
{[%emt 00:00:03]} 7. gxf3 {[%clk 00:14:40]} {[%emt 00:00:01]} cxd4 {[%clk
00:14:48]} {[%emt 00:00:03]} 8. cxd4 {[%clk 00:14:41]} {[%emt 00:00:03]} e6
{[%clk 00:14:37]} {[%emt 00:00:14]} 9. Nc3 {[%clk 00:14:42]} {[%emt 00:00:05]}
Nf6 {[%clk 00:14:26]} {[%emt 00:00:15]} 10. Nb5 {[%clk 00:14:28]} {[%emt
00:00:20]} Na6 {[%clk 00:13:06]} {[%emt 00:01:26]} 11. Bf4 {[%clk 00:14:14]}
{[%emt 00:00:19]} Bb4+ {[%clk 00:13:05]} {[%emt 00:00:05]} 12. Kd1 {[%clk
00:13:59]} {[%emt 00:00:20]} Kd7 {[%clk 00:11:13]} {[%emt 00:01:58]} 13. a3
{[%clk 00:13:37]} {[%emt 00:00:27]} Ba5 {[%clk 00:11:11]} {[%emt 00:00:06]} 14.
Nd6 {[%clk 00:13:20]} {[%emt 00:00:22]} Bc7 {[%clk 00:10:36]} {[%emt 00:00:41]}
15. Nxb7 {[%clk 00:13:08]} {[%emt 00:00:16]} Bxf4 {[%clk 00:10:37]} {[%emt
00:00:05]} 16. Bxa6 {[%clk 00:13:10]} {[%emt 00:00:02]} Ke7 {[%clk 00:09:33]}
{[%emt 00:01:09]} 17. Ke2 {[%clk 00:12:05]} {[%emt 00:01:11]} Rac8 {[%clk
00:08:47]} {[%emt 00:00:51]} 18. Nc5 {[%clk 00:12:04]} {[%emt 00:00:05]} Rc6
{[%clk 00:08:49]} {[%emt 00:00:03]} 19. Bd3 {[%clk 00:11:59]} {[%emt 00:00:09]}
Rd8 {[%clk 00:08:22]} {[%emt 00:00:33]} 20. b4 {[%clk 00:11:39]} {[%emt
00:00:27]} Rxd4 {[%clk 00:08:16]} {[%emt 00:00:10]} 21. Rad1 {[%clk 00:11:00]}
{[%emt 00:00:44]} a5 {[%clk 00:06:53]} {[%emt 00:01:28]} 22. Be4 {[%clk
00:09:38]} {[%emt 00:01:26]} Rxd1 {[%clk 00:05:32]} {[%emt 00:01:26]} 23. Rxd1
{[%clk 00:09:40]} {[%emt 00:00:03]} Rc8 {[%clk 00:05:05]} {[%emt 00:00:33]} 24.
h4 {[%clk 00:08:51]} {[%emt 00:00:54]} axb4 {[%clk 00:04:50]} {[%emt 00:00:19]}
25. axb4 {[%clk 00:08:51]} {[%emt 00:00:05]} Rb8 {[%clk 00:04:24]} {[%emt
00:00:31]} 26. Rd4 {[%clk 00:08:39]} {[%emt 00:00:17]} Be5 {[%clk 00:04:04]}
{[%emt 00:00:25]} 27. Rc4 {[%clk 00:08:41]} {[%emt 00:00:04]} Nd5 {[%clk
00:03:54]} {[%emt 00:00:15]} 28. Nd3 {[%clk 00:08:32]} {[%emt 00:00:13]} Bd6
{[%clk 00:02:50]} {[%emt 00:01:09]} 29. Bxd5 {[%clk 00:06:36]} {[%emt
00:02:01]} exd5 {[%clk 00:02:54]} {[%emt 00:00:02]} 30. Rd4 {[%clk 00:06:20]}
{[%emt 00:00:21]} Rb5 {[%clk 00:02:14]} {[%emt 00:00:45]} 31. Nf4 {[%clk
00:05:54]} {[%emt 00:00:26]} Bxf4 {[%clk 00:01:55]} {[%emt 00:00:29]} 32. Rxf4
{[%clk 00:05:57]} {[%emt 00:00:01]} Ke6 {[%clk 00:01:45]} {[%emt 00:00:16]} 33.
Ke3 {[%clk 00:05:44]} {[%emt 00:00:18]} h5 {[%clk 00:01:25]} {[%emt 00:00:24]}
34. Rd4 {[%clk 00:05:27]} {[%emt 00:00:22]} Ke5 {[%clk 00:01:27]} {[%emt
00:00:03]} 35. f4+ {[%clk 00:05:27]} {[%emt 00:00:05]} Kf5 {[%clk 00:01:21]}
{[%emt 00:00:12]} 36. f3 {[%clk 00:05:19]} {[%emt 00:00:12]} Ke6 {[%clk
00:01:19]} {[%emt 00:00:08]} 37. Kd3 {[%clk 00:05:12]} {[%emt 00:00:11]} Kd6
{[%clk 00:01:13]} {[%emt 00:00:11]} 38. Kc3 {[%clk 00:05:15]} {[%emt 00:00:03]}
Kc6 {[%clk 00:01:05]} {[%emt 00:00:12]} 39. Kb3 {[%clk 00:04:02]} {[%emt
00:01:18]} Rb7 {[%clk 00:01:08]} {[%emt 00:00:02]} 40. Rd2 {[%emt 00:00:54]}
Re7 {[%clk 00:00:33]} 41. b5+ {[%clk 00:03:38]} {[%emt 00:00:20]} Kxb5 {[%clk
00:00:37]} {[%emt 00:00:01]} 42. Rxd5+ {[%clk 00:03:42]} {[%emt 00:00:01]} Kc6
{[%clk 00:00:37]} {[%emt 00:00:04]} 43. Rxh5 {[%clk 00:03:46]} {[%emt
00:00:02]} Re3+ {[%clk 00:00:40]} {[%emt 00:00:02]} 44. Kc4 {[%clk 00:03:48]}
{[%emt 00:00:03]} Rxf3 {[%clk 00:00:44]} {[%emt 00:00:02]} 45. Rf5 {[%clk
00:03:51]} {[%emt 00:00:01]} f6 {[%clk 00:00:45]} {[%emt 00:00:04]} 46. Kd4
{[%clk 00:03:47]} {[%emt 00:00:09]} Kd6 {[%clk 00:00:46]} {[%emt 00:00:03]} 47.
Ke4 {[%clk 00:03:50]} {[%emt 00:00:02]} Rh3 {[%clk 00:00:47]} {[%emt 00:00:02]}
48. Rh5 {[%clk 00:03:43]} {[%emt 00:00:15]} Rh1 {[%clk 00:00:51]} {[%emt
00:00:01]} 49. Kf5 {[%clk 00:03:43]} {[%emt 00:00:05]} Ke7 {[%clk 00:00:43]}
{[%emt 00:00:13]} 50. Rh7 {[%clk 00:03:43]} {[%emt 00:00:05]} Kf7 {[%clk
00:00:44]} {[%emt 00:00:03]} 51. Rh8 {[%clk 00:03:27]} {[%emt 00:00:21]} Re1
{[%clk 00:00:35]} {[%emt 00:00:15]} 52. h5 {[%clk 00:03:11]} {[%emt 00:00:21]}
Rh1 {[%clk 00:00:32]} {[%emt 00:00:07]} 53. Kg4 {[%clk 00:03:01]} {[%emt
00:00:15]} Ke6 {[%clk 00:00:29]} {[%emt 00:00:09]} 54. Re8+ {[%clk 00:02:49]}
{[%emt 00:00:16]} Kf7 {[%clk 00:00:28]} {[%emt 00:00:07]} 55. Ra8 {[%clk
00:02:43]} {[%emt 00:00:08]} Rg1+ {[%clk 00:00:30]} {[%emt 00:00:05]} 56. Kf5
{[%clk 00:02:41]} {[%emt 00:00:05]} Rh1 {[%clk 00:00:33]} {[%emt 00:00:05]} 57.
Ra7+ {[%clk 00:02:43]} {[%emt 00:00:02]} Kg8 {[%clk 00:00:32]} {[%emt
00:00:06]} 58. Kg4 {[%clk 00:02:04]} {[%emt 00:00:45]} Kh7 {[%clk 00:00:26]}
{[%emt 00:00:11]} 59. Ra8 {[%clk 00:01:39]} {[%emt 00:00:30]} Rg1+ {[%clk
00:00:24]} {[%emt 00:00:06]} 60. Kf5 {[%clk 00:01:40]} {[%emt 00:00:03]} Rh1
{[%clk 00:00:25]} {[%emt 00:00:05]} 61. Kg4 {[%clk 00:01:17]} {[%emt 00:00:28]}
Rg1+ {[%clk 00:00:27]} {[%emt 00:00:03]} 62. Kf5 {[%clk 00:01:05]} {[%emt
00:00:17]} Rh1 {[%clk 00:00:27]} {[%emt 00:00:04]} 1/2-1/2

[Event "Rapid Tournament (RAP)"]
[Site "Biel, Switzerland"]
[Date "2026.07.12"]
[Round "8.47"]
[White "Boyer, Jean-Francois"]
[Black "Materia, Mario"]
[Result "0-1"]
[TimeControl "15 + 5"]
[WhiteTitle "-"]
[BlackTitle "-"]
[WhiteFideId "650226"]
[BlackFideId "651082241"]
[WhiteElo "1749"]
[BlackElo "1914"]

1. e4 {[%clk 00:15:07]} {[%emt 00:00:03]} e5 {[%clk 00:15:10]} 2. Nf3 {[%clk
00:15:09]} {[%emt 00:00:03]} Nc6 {[%clk 00:15:14]} 3. d4 {[%clk 00:15:08]}
{[%emt 00:00:06]} exd4 {[%clk 00:15:17]} {[%emt 00:00:02]} 4. Nxd4 {[%clk
00:15:10]} {[%emt 00:00:02]} Nf6 {[%clk 00:15:21]} {[%emt 00:00:01]} 5. Nxc6
{[%clk 00:15:07]} {[%emt 00:00:08]} bxc6 {[%clk 00:15:24]} {[%emt 00:00:02]} 6.
e5 {[%clk 00:15:03]} {[%emt 00:00:10]} Qe7 {[%clk 00:15:28]} {[%emt 00:00:02]}
7. Qe2 {[%clk 00:15:06]} {[%emt 00:00:02]} Nd5 {[%clk 00:15:30]} {[%emt
00:00:03]} 8. c4 {[%clk 00:14:52]} {[%emt 00:00:18]} Ba6 {[%clk 00:15:34]}
{[%emt 00:00:02]} 9. g3 {[%clk 00:13:22]} {[%emt 00:01:35]} g6 {[%clk
00:15:29]} {[%emt 00:00:09]} 10. Bg2 {[%clk 00:12:13]} {[%emt 00:01:15]} Bg7
{[%clk 00:15:09]} {[%emt 00:00:24]} 11. Qe4 {[%clk 00:11:26]} {[%emt 00:00:51]}
Nb6 {[%clk 00:14:52]} {[%emt 00:00:24]} 12. O-O {[%clk 00:10:24]} {[%emt
00:01:06]} Bxc4 {[%clk 00:14:41]} {[%emt 00:00:16]} 13. Re1 {[%clk 00:10:20]}
{[%emt 00:00:09]} Bd5 {[%clk 00:14:42]} {[%emt 00:00:04]} 14. Qd4 {[%clk
00:09:22]} {[%emt 00:01:01]} O-O {[%clk 00:14:27]} {[%emt 00:00:22]} 15. Nc3
{[%clk 00:09:07]} {[%emt 00:00:20]} Bxg2 {[%clk 00:14:20]} {[%emt 00:00:12]} 16.
Kxg2 {[%clk 00:09:10]} {[%emt 00:00:02]} Rfe8 {[%clk 00:13:23]} {[%emt
00:01:03]} 17. f4 {[%clk 00:08:07]} {[%emt 00:01:07]} d6 {[%clk 00:13:03]}
{[%emt 00:00:25]} 18. Qe4 {[%clk 00:07:49]} {[%emt 00:00:23]} dxe5 {[%clk
00:12:36]} {[%emt 00:00:32]} 19. Qxc6 {[%clk 00:07:44]} {[%emt 00:00:10]} Qd7
{[%clk 00:12:07]} {[%emt 00:00:35]} 20. Qf3 {[%clk 00:06:49]} {[%emt 00:01:00]}
exf4 {[%clk 00:12:01]} {[%emt 00:00:11]} 21. Bxf4 {[%clk 00:06:36]} {[%emt
00:00:18]} Qf5 {[%clk 00:09:35]} {[%emt 00:02:30]} 22. Rxe8+ {[%clk 00:05:23]}
{[%emt 00:01:17]} Rxe8 {[%clk 00:09:33]} {[%emt 00:00:08]} 23. Rc1 {[%clk
00:05:27]} {[%emt 00:00:02]} c5 {[%clk 00:08:02]} {[%emt 00:01:36]} 24. g4
{[%clk 00:05:06]} {[%emt 00:00:25]} Qe6 {[%clk 00:07:40]} {[%emt 00:00:26]} 25.
Rc2 {[%clk 00:04:38]} {[%emt 00:00:34]} Bxc3 {[%clk 00:06:59]} {[%emt
00:00:46]} 26. bxc3 {[%clk 00:04:11]} {[%emt 00:00:32]} Qd5 {[%clk 00:06:52]}
{[%emt 00:00:12]} 27. c4 {[%clk 00:03:45]} {[%emt 00:00:31]} Qxf3+ {[%clk
00:05:36]} {[%emt 00:01:21]} 28. Kxf3 {[%clk 00:03:49]} {[%emt 00:00:02]} Re6
{[%clk 00:05:19]} {[%emt 00:00:21]} 29. Bh6 {[%clk 00:03:02]} {[%emt 00:00:51]}
f6 {[%clk 00:05:04]} {[%emt 00:00:21]} 30. Bf4 {[%clk 00:02:33]} {[%emt
00:00:34]} Kf7 {[%clk 00:04:59]} {[%emt 00:00:10]} 31. Bb8 {[%clk 00:02:10]}
{[%emt 00:00:28]} a6 {[%clk 00:04:27]} {[%emt 00:00:37]} 32. Bc7 {[%clk
00:01:23]} {[%emt 00:00:52]} Nd7 {[%clk 00:04:08]} {[%emt 00:00:23]} 33. h3
{[%clk 00:00:55]} {[%emt 00:00:34]} Rc6 {[%clk 00:03:51]} {[%emt 00:00:23]} 34.
Bg3 {[%clk 00:00:48]} {[%emt 00:00:11]} Re6 {[%clk 00:03:54]} {[%emt 00:00:02]}
35. Bc7 {[%clk 00:00:47]} {[%emt 00:00:06]} Ne5+ {[%clk 00:03:58]} {[%emt
00:00:02]} 36. Kf2 {[%clk 00:00:44]} {[%emt 00:00:07]} Nd3+ {[%clk 00:03:58]}
{[%emt 00:00:06]} 37. Kf1 {[%clk 00:00:38]} {[%emt 00:00:09]} Re1+ {[%clk
00:03:42]} {[%emt 00:00:21]} 38. Kg2 {[%clk 00:00:38]} {[%emt 00:00:03]} Re4
{[%clk 00:03:33]} {[%emt 00:00:16]} 39. Kf1 {[%clk 00:00:29]} {[%emt 00:00:14]}
Nb4 {[%clk 00:03:28]} {[%emt 00:00:09]} 40. Rb2 {[%clk 00:00:28]} {[%emt
00:00:08]} Rxc4 {[%clk 00:03:30]} {[%emt 00:00:04]} 41. a3 {[%clk 00:00:22]}
{[%emt 00:00:10]} Rc1+ {[%clk 00:03:31]} {[%emt 00:00:05]} 42. Kg2 {[%clk
00:00:23]} {[%emt 00:00:04]} Rc2+ {[%clk 00:03:35]} {[%emt 00:00:01]} 43. Rxc2
{[%clk 00:00:26]} {[%emt 00:00:02]} Nxc2 {[%clk 00:03:39]} 44. a4 {[%clk
00:00:30]} {[%emt 00:00:01]} Ke6 {[%clk 00:03:40]} {[%emt 00:00:04]} 45. Kf2
{[%clk 00:00:32]} {[%emt 00:00:02]} Kd5 {[%clk 00:03:42]} {[%emt 00:00:03]} 46.
Ke2 {[%clk 00:00:35]} {[%emt 00:00:02]} c4 {[%clk 00:03:43]} {[%emt 00:00:05]}
47. Kd2 {[%clk 00:00:29]} {[%emt 00:00:10]} Nd4 {[%clk 00:03:38]} {[%emt
00:00:10]} 48. Kc3 {[%clk 00:00:19]} {[%emt 00:00:15]} Ne6 {[%clk 00:03:19]}
{[%emt 00:00:25]} 49. Bg3 {[%clk 00:00:14]} {[%emt 00:00:09]} f5 {[%clk
00:03:23]} {[%emt 00:00:01]} 50. gxf5 {[%clk 00:00:07]} {[%emt 00:00:13]} gxf5
{[%clk 00:03:25]} {[%emt 00:00:02]} 51. Bf2 {[%clk 00:00:10]} {[%emt 00:00:02]}
Nc5 {[%clk 00:03:22]} {[%emt 00:00:09]} 52. Kb4 {[%clk 00:00:10]} {[%emt
00:00:04]} Nd3+ {[%clk 00:03:25]} {[%emt 00:00:03]} 0-1

[Event "Rapid Tournament (RAP)"]
[Site "Biel, Switzerland"]
[Date "2026.07.12"]
[Round "8.48"]
[White "Schneggenburger, Miguel"]
[Black "Filimonov, Arsenii"]
[Result "0-1"]
[TimeControl "15 + 5"]
[WhiteTitle "-"]
[BlackTitle "-"]
[WhiteFideId "1361279"]
[BlackFideId "34171584"]
[WhiteElo "1742"]
[BlackElo "1843"]

1. d4 {[%clk 00:15:08]} {[%emt 00:00:01]} Nf6 {[%clk 00:15:09]} {[%emt
00:00:02]} 2. c4 {[%clk 00:15:11]} {[%emt 00:00:03]} e6 {[%clk 00:15:13]} 3.
Nf3 {[%clk 00:15:10]} {[%emt 00:00:05]} b6 {[%clk 00:15:15]} {[%emt 00:00:03]}
4. g3 {[%clk 00:14:53]} {[%emt 00:00:21]} Ba6 {[%clk 00:15:16]} {[%emt
00:00:04]} 5. b3 {[%clk 00:14:09]} {[%emt 00:00:49]} Bb7 {[%clk 00:15:12]}
{[%emt 00:00:10]} 6. Bg2 {[%clk 00:14:11]} {[%emt 00:00:03]} Bb4+ {[%clk
00:14:57]} {[%emt 00:00:20]} 7. Nbd2 {[%clk 00:13:45]} {[%emt 00:00:31]} O-O
{[%clk 00:14:40]} {[%emt 00:00:22]} 8. O-O {[%clk 00:13:36]} {[%emt 00:00:13]}
c6 {[%clk 00:14:41]} {[%emt 00:00:05]} 9. a3 {[%clk 00:13:16]} {[%emt
00:00:25]} Be7 {[%clk 00:14:41]} {[%emt 00:00:05]} 10. e4 {[%clk 00:13:07]}
{[%emt 00:00:13]} d5 {[%clk 00:14:38]} {[%emt 00:00:09]} 11. e5 {[%clk
00:11:51]} {[%emt 00:01:20]} Nfd7 {[%clk 00:14:37]} {[%emt 00:00:06]} 12. Bb2
{[%clk 00:11:37]} {[%emt 00:00:20]} Qc7 {[%clk 00:13:37]} {[%emt 00:01:05]} 13.
Rc1 {[%clk 00:11:30]} {[%emt 00:00:11]} c5 {[%clk 00:13:16]} {[%emt 00:00:27]}
14. cxd5 {[%clk 00:10:59]} {[%emt 00:00:36]} Bxd5 {[%clk 00:13:16]} {[%emt
00:00:06]} 15. Qe2 {[%clk 00:09:07]} {[%emt 00:01:54]} Qb7 {[%clk 00:13:05]}
{[%emt 00:00:17]} 16. Rfd1 {[%clk 00:08:17]} {[%emt 00:00:56]} Nc6 {[%clk
00:11:56]} {[%emt 00:01:14]} 17. dxc5 {[%clk 00:07:46]} {[%emt 00:00:36]} bxc5
{[%clk 00:11:52]} {[%emt 00:00:09]} 18. Nc4 {[%clk 00:06:34]} {[%emt 00:01:17]}
Rab8 {[%clk 00:10:26]} {[%emt 00:01:32]} 19. Nfd2 {[%clk 00:05:53]} {[%emt
00:00:44]} Bxg2 {[%clk 00:10:12]} {[%emt 00:00:20]} 20. Nd6 {[%clk 00:04:32]}
{[%emt 00:01:26]} Bxd6 {[%clk 00:10:02]} {[%emt 00:00:15]} 21. exd6 {[%clk
00:04:29]} {[%emt 00:00:08]} Bd5 {[%clk 00:10:04]} {[%emt 00:00:02]} 22. Qg4
{[%clk 00:04:12]} {[%emt 00:00:23]} Nce5 {[%clk 00:09:18]} {[%emt 00:00:51]} 23.
Qe2 {[%clk 00:03:16]} {[%emt 00:01:01]} Nf3+ {[%clk 00:09:08]} {[%emt
00:00:15]} 24. Nxf3 {[%clk 00:01:54]} {[%emt 00:01:27]} Bxf3 {[%clk 00:09:10]}
{[%emt 00:00:03]} 25. Qc2 {[%clk 00:01:19]} {[%emt 00:00:40]} Bxd1 {[%clk
00:09:08]} {[%emt 00:00:06]} 26. Qc3 {[%clk 00:01:18]} {[%emt 00:00:07]} f6
{[%clk 00:09:09]} {[%emt 00:00:04]} 27. Rxd1 {[%clk 00:00:58]} {[%emt
00:00:26]} Qxb3 {[%clk 00:09:09]} {[%emt 00:00:04]} 28. Qxb3 {[%clk 00:00:32]}
{[%emt 00:00:31]} Rxb3 {[%clk 00:09:10]} {[%emt 00:00:03]} 29. Bc1 {[%clk
00:00:14]} {[%emt 00:00:24]} Rfb8 {[%clk 00:09:12]} {[%emt 00:00:03]} 30. Be3
{[%clk 00:00:10]} {[%emt 00:00:08]} Rb1 {[%clk 00:09:13]} {[%emt 00:00:05]} 31.
Bc1 {[%clk 00:00:09]} {[%emt 00:00:06]} R8b3 {[%clk 00:09:15]} {[%emt
00:00:04]} 32. Re1 {[%clk 00:00:06]} {[%emt 00:00:08]} Rc3 {[%clk 00:09:15]}
{[%emt 00:00:05]} 33. Bd2 {[%clk 00:00:10]} {[%emt 00:00:01]} Rxe1+ {[%clk
00:09:17]} {[%emt 00:00:02]} 34. Bxe1 {[%clk 00:00:14]} {[%emt 00:00:01]} Rc1
{[%clk 00:09:22]} {[%emt 00:00:01]} 35. Kf1 {[%clk 00:00:17]} {[%emt 00:00:01]}
c4 {[%clk 00:09:25]} {[%emt 00:00:03]} 36. Ke2 {[%clk 00:00:17]} {[%emt
00:00:05]} Kf7 {[%clk 00:09:27]} {[%emt 00:00:02]} 37. Bb4 {[%clk 00:00:08]}
{[%emt 00:00:15]} e5 {[%clk 00:09:21]} {[%emt 00:00:10]} 38. Kd2 {[%clk
00:00:10]} {[%emt 00:00:03]} Rf1 {[%clk 00:09:24]} {[%emt 00:00:02]} 39. Kc3
{[%clk 00:00:07]} {[%emt 00:00:09]} Rxf2 {[%clk 00:09:24]} {[%emt 00:00:04]} 40.
Kxc4 {[%clk 00:00:11]} {[%emt 00:00:02]} Ke6 {[%clk 00:09:28]} {[%emt
00:00:01]} 41. Kb5 {[%clk 00:00:08]} {[%emt 00:00:07]} Rb2 {[%clk 00:09:26]}
{[%emt 00:00:07]} 42. Kc6 {[%clk 00:00:07]} {[%emt 00:00:06]} Rxb4 {[%clk
00:09:29]} {[%emt 00:00:02]} 43. axb4 {[%clk 00:00:11]} {[%emt 00:00:02]} e4
{[%clk 00:09:33]} 0-1

[Event "Rapid Tournament (RAP)"]
[Site "Biel, Switzerland"]
[Date "2026.07.12"]
[Round "8.49"]
[White "Ziegler, Andrin"]
[Black "Erb, Bernhard"]
[Result "0-1"]
[TimeControl "15 + 5"]
[WhiteTitle "-"]
[BlackTitle "-"]
[WhiteFideId "1364138"]
[BlackFideId "1319809"]
[WhiteElo "1730"]
[BlackElo "1837"]

1. d4 {[%clk 00:15:09]} e6 {[%clk 00:15:05]} {[%emt 00:00:06]} 2. c4 {[%clk
00:15:12]} {[%emt 00:00:02]} f5 {[%clk 00:15:06]} {[%emt 00:00:04]} 3. Nc3
{[%clk 00:14:47]} {[%emt 00:00:30]} Nf6 {[%clk 00:15:02]} {[%emt 00:00:08]} 4.
g3 {[%clk 00:14:23]} {[%emt 00:00:30]} Be7 {[%clk 00:14:59]} {[%emt 00:00:06]}
5. Bg2 {[%clk 00:14:27]} {[%emt 00:00:02]} Nc6 {[%clk 00:14:49]} {[%emt
00:00:15]} 6. Nf3 {[%clk 00:12:51]} {[%emt 00:01:40]} O-O {[%clk 00:14:43]}
{[%emt 00:00:11]} 7. O-O {[%clk 00:12:53]} {[%emt 00:00:04]} a6 {[%clk
00:14:40]} {[%emt 00:00:08]} 8. Ne5 {[%clk 00:12:02]} {[%emt 00:00:56]} Rb8
{[%clk 00:14:27]} {[%emt 00:00:18]} 9. Re1 {[%clk 00:11:14]} {[%emt 00:00:53]}
Na7 {[%clk 00:14:21]} {[%emt 00:00:12]} 10. Be3 {[%clk 00:10:15]} {[%emt
00:01:03]} b6 {[%clk 00:14:03]} {[%emt 00:00:22]} 11. d5 {[%clk 00:08:30]}
{[%emt 00:01:52]} d6 {[%clk 00:13:22]} {[%emt 00:00:45]} 12. Nc6 {[%clk
00:08:06]} {[%emt 00:00:29]} Nxc6 {[%clk 00:13:25]} {[%emt 00:00:02]} 13. dxc6
{[%clk 00:08:10]} Ng4 {[%clk 00:13:07]} {[%emt 00:00:23]} 14. Bd2 {[%clk
00:07:22]} {[%emt 00:00:54]} Bf6 {[%clk 00:12:56]} {[%emt 00:00:15]} 15. Rc1
{[%clk 00:07:14]} {[%emt 00:00:14]} Bd4 {[%clk 00:12:11]} {[%emt 00:00:50]} 16.
e3 {[%clk 00:06:40]} {[%emt 00:00:39]} Bf6 {[%clk 00:12:02]} {[%emt 00:00:13]}
17. h3 {[%clk 00:05:57]} {[%emt 00:00:49]} Ne5 {[%clk 00:12:02]} {[%emt
00:00:05]} 18. Qe2 {[%clk 00:05:01]} {[%emt 00:01:01]} Qe8 {[%clk 00:11:54]}
{[%emt 00:00:13]} 19. e4 {[%clk 00:04:54]} {[%emt 00:00:12]} Nxc6 {[%clk
00:11:21]} {[%emt 00:00:38]} 20. exf5 {[%clk 00:04:56]} {[%emt 00:00:03]} Nd4
{[%clk 00:11:25]} {[%emt 00:00:01]} 21. Qd3 {[%clk 00:03:49]} {[%emt 00:01:12]}
Nxf5 {[%clk 00:11:16]} {[%emt 00:00:14]} 22. Nd5 {[%clk 00:02:15]} {[%emt
00:01:39]} Bxb2 {[%clk 00:09:43]} {[%emt 00:01:37]} 23. Nxc7 {[%clk 00:01:41]}
{[%emt 00:00:41]} Qf7 {[%clk 00:09:17]} {[%emt 00:00:30]} 24. Nxa6 {[%clk
00:01:43]} {[%emt 00:00:03]} Bxa6 {[%clk 00:09:19]} {[%emt 00:00:03]} 25. Rc2
{[%clk 00:01:45]} {[%emt 00:00:03]} Bd4 {[%clk 00:09:17]} {[%emt 00:00:07]} 26.
Rxe6 {[%clk 00:01:17]} {[%emt 00:00:34]} Kh8 {[%clk 00:08:58]} {[%emt
00:00:24]} 27. Bd5 {[%clk 00:00:56]} {[%emt 00:00:26]} Nxg3 {[%clk 00:07:39]}
{[%emt 00:01:23]} 28. Qxd4 {[%clk 00:00:42]} {[%emt 00:00:19]} Ne2+ {[%clk
00:07:40]} {[%emt 00:00:05]} 29. Rxe2 {[%clk 00:00:46]} {[%emt 00:00:01]} Qg6+
{[%clk 00:07:30]} {[%emt 00:00:13]} 30. Kf1 {[%clk 00:00:10]} {[%emt 00:00:42]}
Qxc2 {[%clk 00:07:31]} {[%emt 00:00:04]} 31. Bh6 {[%clk 00:00:13]} {[%emt
00:00:01]} Qb1+ {[%clk 00:07:23]} {[%emt 00:00:14]} 32. Kg2 {[%clk 00:00:17]}
{[%emt 00:00:02]} Qg6+ {[%emt 00:00:08]} 0-1

[Event "Rapid Tournament (RAP)"]
[Site "Biel, Switzerland"]
[Date "2026.07.12"]
[Round "8.50"]
[White "Rohde, Bernhard"]
[Black "Zumbrunn, Simon"]
[Result "0-1"]
[TimeControl "15 + 5"]
[WhiteTitle "-"]
[BlackTitle "-"]
[WhiteFideId "1323016"]
[BlackFideId "1364146"]
[WhiteElo "1834"]
[BlackElo "1727"]

1. e4 {[%clk 00:15:07]} {[%emt 00:00:02]} e5 {[%clk 00:15:09]} {[%emt
00:00:01]} 2. Nf3 {[%clk 00:15:11]} {[%emt 00:00:03]} Nc6 {[%clk 00:15:13]} 3.
Bc4 {[%clk 00:15:15]} Nf6 {[%clk 00:15:18]} 4. Ng5 {[%clk 00:15:16]} {[%emt
00:00:04]} d5 {[%clk 00:15:22]} {[%emt 00:00:01]} 5. exd5 {[%clk 00:15:19]}
{[%emt 00:00:02]} b5 {[%clk 00:15:26]} {[%emt 00:00:01]} 6. Bxb5 {[%clk
00:14:16]} {[%emt 00:01:08]} Qxd5 {[%clk 00:15:29]} {[%emt 00:00:02]} 7. Bxc6+
{[%clk 00:11:41]} {[%emt 00:02:40]} Qxc6 {[%clk 00:15:33]} {[%emt 00:00:01]} 8.
Nf3 {[%clk 00:10:29]} {[%emt 00:01:17]} Bb7 {[%clk 00:14:39]} {[%emt 00:00:58]}
9. Nc3 {[%clk 00:10:08]} {[%emt 00:00:27]} Bc5 {[%clk 00:14:35]} {[%emt
00:00:09]} 10. d3 {[%clk 00:09:37]} {[%emt 00:00:36]} O-O-O {[%clk 00:13:21]}
{[%emt 00:01:19]} 11. Qe2 {[%clk 00:07:15]} {[%emt 00:02:26]} e4 {[%clk
00:12:30]} {[%emt 00:00:57]} 12. dxe4 {[%clk 00:06:44]} {[%emt 00:00:36]} Rhe8
{[%clk 00:11:40]} {[%emt 00:00:55]} 13. O-O {[%clk 00:06:42]} {[%emt 00:00:07]}
Ba6 {[%clk 00:11:38]} {[%emt 00:00:07]} 14. Qe1 {[%clk 00:05:56]} {[%emt
00:00:51]} Nxe4 {[%clk 00:11:13]} {[%emt 00:00:30]} 15. Nxe4 {[%clk 00:05:44]}
{[%emt 00:00:16]} Rxe4 {[%clk 00:11:08]} {[%emt 00:00:10]} 16. Be3 {[%clk
00:05:24]} {[%emt 00:00:25]} Bxe3 {[%clk 00:10:46]} {[%emt 00:00:27]} 17. fxe3
{[%clk 00:05:25]} {[%emt 00:00:04]} Bxf1 {[%clk 00:10:49]} {[%emt 00:00:03]} 18.
Qxf1 {[%clk 00:05:17]} {[%emt 00:00:12]} Rxe3 {[%clk 00:10:42]} {[%emt
00:00:12]} 19. c3 {[%clk 00:05:03]} {[%emt 00:00:20]} Rde8 {[%clk 00:10:21]}
{[%emt 00:00:25]} 20. Nd4 {[%clk 00:05:02]} {[%emt 00:00:06]} Qg6 {[%clk
00:10:17]} {[%emt 00:00:10]} 21. Qf2 {[%clk 00:04:26]} {[%emt 00:00:40]} f6
{[%clk 00:06:55]} {[%emt 00:03:27]} 22. g3 {[%clk 00:04:25]} {[%emt 00:00:06]}
Qe4 {[%clk 00:06:50]} {[%emt 00:00:11]} 23. Qg2 {[%clk 00:04:28]} {[%emt
00:00:02]} Qxg2+ {[%clk 00:06:36]} {[%emt 00:00:19]} 24. Kxg2 {[%clk 00:04:31]}
{[%emt 00:00:02]} c5 {[%clk 00:06:37]} {[%emt 00:00:04]} 25. Nf5 {[%clk
00:04:19]} {[%emt 00:00:16]} Re2+ {[%clk 00:06:39]} {[%emt 00:00:03]} 26. Kh3
{[%clk 00:04:22]} {[%emt 00:00:03]} R8e5 {[%clk 00:06:17]} {[%emt 00:00:27]} 27.
Nxg7 {[%clk 00:04:09]} {[%emt 00:00:18]} Rg5 {[%clk 00:06:15]} {[%emt
00:00:06]} 0-1